fUSD/lending_fUSD_20250519
["ID","MTS","AMOUNT","RATE_DAILY","PERIOD"]
[361692593,1747695041411,-155.0,0.00011999,2]
[361692594,1747695041422,-899.0,0.00011999,2]
[361692595,1747695041432,-150.0,0.00011999,2]
[361692596,1747695041442,-150.0,0.00011999,2]
[361692597,1747695041451,-500.0,0.00011999,2]
[361692598,1747695041461,-341.09318519,0.00012,2]
[361692599,1747695041470,-522606.97573725,0.00012,2]
[361692600,1747695041480,-3451044.25652332,0.00012,2]
[361692601,1747695041489,-1000.0,0.00012,2]
[361692602,1747695041500,-1000.0,0.00012,2]
[361692603,1747695041509,-1000.0,0.00012,2]
[361692604,1747695041520,-1000.0,0.00012,2]
[361692605,1747695041530,-1000.0,0.00012,2]
[361692606,1747695041539,-1000.0,0.00012,2]
[361692607,1747695041549,-1000.0,0.00012,2]
[361692608,1747695041559,-1000.0,0.00012,2]
[361692609,1747695041570,-1000.0,0.00012,2]
[361692610,1747695041580,-1000.0,0.00012,2]
[361692611,1747695041590,-1000.0,0.00012,2]
[361692612,1747695041601,-1000.0,0.00012,2]
[361692613,1747695041611,-1000.0,0.00012,2]
[361692614,1747695041621,-1000.0,0.00012,2]
[361692615,1747695041630,-1000.0,0.00012,2]
[361692616,1747695041642,-1000.0,0.00012,2]
[361692617,1747695041651,-1000.0,0.00012,2]
[361692618,1747695041660,-1000.0,0.00012,2]
[361692619,1747695041671,-1000.0,0.00012,2]
[361692620,1747695041680,-1000.0,0.00012,2]
[361692621,1747695041689,-1000.0,0.00012,2]
[361692622,1747695041699,-1000.0,0.00012,2]
[361692623,1747695041709,-1000.0,0.00012,2]
[361692624,1747695041718,-1000.0,0.00012,2]
[361692625,1747695041728,-1000.0,0.00012,2]
[361692626,1747695041738,-1000.0,0.00012,2]
[361692627,1747695041747,-1000.0,0.00012,2]
[361692628,1747695041757,-1000.0,0.00012,2]
[361692629,1747695041767,-1000.0,0.00012,2]
[361692630,1747695041777,-1000.0,0.00012,2]
[361692631,1747695041786,-1140.99961029,0.00012,2]
[361692632,1747695041796,-792717.73311893,0.00012,2]
[361692633,1747695041843,-245446.45860192,0.00012,2]
[361692634,1747695041855,-21308.37357266,0.00012,2]
[361692706,1747695044054,-858.6849167,0.00011889,2]
[361692711,1747695044094,-1504.34067497,0.00011889,2]
[361692713,1747695044104,-174.5242758,0.000119,2]
[361692715,1747695044113,-199502.65703882,0.00012,2]
[361692718,1747695044125,-2396.44266194,0.00012,2]
[361692722,1747695044152,-1189.34778732,0.00012,2]
[361692724,1747695044164,-268.61,0.00012,2]
[361692726,1747695044175,-14351.0,0.00012,2]
[361692954,1747695046375,-428.89054298,0.00012,2]
[361692956,1747695046387,-500.0,0.00012,2]
[361692980,1747695046631,-107840.3379658,0.00012,2]
[361692988,1747695046701,-33490.21234996,0.00012,2]
[361692994,1747695046753,-309.432,0.00012,2]
[361693993,1747695216218,200.0,0.00011068,2]
[361693994,1747695262991,204.51,0.00011049,2]
[361693995,1747695347912,1000.0,0.00010923,2]
[361693996,1747695371511,202.0,0.00011127,2]
[361693997,1747695376397,678.23,0.00010908,2]
[361693998,1747695453808,1106.21,8.982e-05,2]
[361693999,1747695465753,550.23,0.00010897,2]
[361694000,1747695571713,151.96,0.00010936,2]
[361694001,1747695607612,4012.28,0.00010873,2]
[361694002,1747695608859,-168.75,0.00011228,2]
[361694003,1747695611465,-295.29682209,0.00011246,2]
[361694004,1747695613718,-164.26076236,0.00011246,2]
[361694005,1747695616185,-285.73923764,0.00011246,2]
[361694006,1747695621090,-165.5822956,0.00011246,2]
[361694007,1747695623707,-195.33088231,0.00011246,2]
[361694008,1747695737637,23900.0,0.00010838,2]
[361694009,1747695743517,22319.0,0.00011,2]
[361694010,1747695771311,669.87,0.0001081,2]
[361694011,1747695771794,669.87,0.00010813,2]
[361694012,1747695772398,669.87,0.00010816,2]
[361694013,1747695772652,669.87,0.00010819,2]
[361694014,1747695772832,669.87,0.00010821,2]
[361694015,1747695773035,154.2948745,0.00010824,2]
[361694016,1747695773059,515.5751255,0.00010824,2]
[361694017,1747695773177,669.87,0.00010827,2]
[361694018,1747695773370,669.87,0.0001083,2]
[361694019,1747695773557,669.87,0.00010833,2]
[361694020,1747695773802,669.87,0.00010836,2]
[361694021,1747695773986,669.87,0.00010839,2]
[361694022,1747695774233,669.87,0.00010841,2]
[361694023,1747695774439,190.05532695,0.00010844,2]
[361694024,1747695774465,479.81467305,0.00010844,2]
[361694025,1747695774606,669.87,0.00010847,2]
[361694026,1747695775541,669.87,0.0001085,2]
[361694027,1747695775805,669.87,0.00010853,2]
[361694028,1747695775968,669.87,0.00010856,2]
[361694029,1747695776131,669.87,0.00010859,2]
[361694030,1747695776395,669.87,0.00010861,2]
[361694031,1747695776501,669.87,0.00010864,2]
[361694032,1747695887134,-241.0,0.000114,4]
[361694033,1747695938961,165.37,0.00010819,2]
[361694034,1747695954450,-205.0,0.00011233,2]
[361694035,1747695959209,-268.90880461,0.00011233,2]
[361694036,1747695965027,-203.0,0.00011233,2]
[361694037,1747695967042,-220.36119539,0.00011233,2]
[361694038,1747695970489,-389.93,0.00011233,2]
[361694039,1747695976110,-1.57,0.00011233,2]
[361694040,1747696086543,1287.0,0.00011,2]
[361694041,1747696092535,150.052007,0.000273,120]
[361694042,1747696094438,250.0,0.00010785,2]
[361694043,1747696122103,150.0,0.00014,5]
[361694048,1747696210461,518.39,0.00010776,2]
[361694050,1747696231500,-250.0,0.00011316,2]
[361694051,1747696231510,-200.0,0.00011316,2]
[361694052,1747696231520,-200.0,0.00011324,2]
[361694053,1747696231530,-89.489561,0.00011332,2]
[361694054,1747696231551,-99.760439,0.00011332,2]
[361694055,1747696231562,-300.0,0.000114,4]
[361694056,1747696231571,-196.68454053,0.000114,2]
[361694057,1747696231581,-422.20891278,0.000115,2]
[361694058,1747696231591,-700.0,0.000115,4]
[361694059,1747696231601,-196.68454053,0.0001154,2]
[361694060,1747696231611,-864.76119748,0.00011587,2]
[361694061,1747696231620,-1100.0,0.000116,4]
[361694062,1747696231630,-1200.0,0.00011626,2]
[361694063,1747696231640,-300.0,0.00011626,2]
[361694064,1747696231649,-300.0,0.00011627,2]
[361694065,1747696231660,-300.0,0.00011627,2]
[361694066,1747696231670,-9999.99,0.00011628,2]
[361694067,1747696231679,-150.99,0.0001168,2]
[361694068,1747696231689,-702.84,0.0001168,2]
[361694069,1747696231700,-696.18,0.0001168,2]
[361694070,1747696231711,-196.68454053,0.0001168,2]
[361694071,1747696231721,-240.98,0.0001168,2]
[361694072,1747696231730,-150.0,0.00011699,2]
[361694073,1747696231740,-150.0,0.00011699,2]
[361694074,1747696231750,-1500.0,0.000117,4]
[361694075,1747696231759,-150.0,0.00011706,2]
[361694076,1747696231770,-150.0,0.00011709,2]
[361694077,1747696231779,-150.0,0.00011709,2]
[361694078,1747696231789,-150.0,0.00011711,2]
[361694079,1747696231798,-150.0,0.00011719,2]
[361694080,1747696231808,-150.0,0.00011721,2]
[361694081,1747696231819,-150.0,0.00011721,2]
[361694082,1747696231828,-150.0,0.00011731,2]
[361694083,1747696231838,-150.0,0.00011734,2]
[361694084,1747696231848,-150.0,0.00011739,2]
[361694085,1747696231857,-150.0,0.00011744,2]
[361694086,1747696231866,-150.0,0.00011745,2]
[361694087,1747696231876,-2500.0,0.00011749,2]
[361694088,1747696231885,-150.0,0.00011751,2]
[361694089,1747696231894,-150.0,0.00011751,2]
[361694090,1747696231904,-151.96,0.00011756,2]
[361694092,1747696231913,-207.4,0.00011766,2]
[361694093,1747696231923,-500.0,0.00011769,2]
[361694094,1747696231932,-500.0,0.00011769,2]
[361694095,1747696231942,-500.0,0.00011769,2]
[361694096,1747696231952,-500.0,0.00011769,2]
[361694097,1747696231961,-500.0,0.00011769,2]
[361694099,1747696231971,-500.0,0.00011769,2]
[361694101,1747696231980,-500.0,0.00011769,2]
[361694103,1747696231989,-592.94663817,0.00011769,2]
[361694105,1747696231998,-150.0,0.00011769,2]
[361694107,1747696232007,-1000.0,0.0001177,2]
[361694109,1747696232016,-5606.8041,0.0001177,2]
[361694111,1747696232025,-226.8743,0.0001177,2]
[361694113,1747696232040,-150.0,0.0001177,2]
[361694115,1747696232049,-150.0,0.00011771,2]
[361694117,1747696232058,-500.0,0.00011773,2]
[361694119,1747696232067,-500.0,0.00011773,2]
[361694121,1747696232077,-155.71211763,0.00011773,2]
[361694123,1747696232086,-500.0,0.00011773,2]
[361694125,1747696232096,-500.0,0.00011773,2]
[361694127,1747696232106,-500.0,0.00011773,2]
[361694129,1747696232116,-215.81506933,0.00011773,2]
[361694131,1747696232125,-533.40563773,0.00011773,2]
[361694133,1747696232134,-500.0,0.00011773,2]
[361694135,1747696232143,-500.0,0.00011773,2]
[361694137,1747696232152,-156.87436001,0.00011773,2]
[361694139,1747696232161,-160.37412854,0.00011773,2]
[361694141,1747696232170,-627.48703444,0.00011773,2]
[361694143,1747696232179,-500.0,0.00011773,2]
[361694145,1747696232188,-500.0,0.00011773,2]
[361694147,1747696232198,-500.0,0.00011773,2]
[361694149,1747696232207,-500.0,0.00011773,2]
[361694151,1747696232216,-150.99,0.00011779,2]
[361694153,1747696232226,-4636.39137053,0.00011779,2]
[361694155,1747696232238,-1450.0,0.00011779,2]
[361694158,1747696232249,-1555.64999961,0.00011779,2]
[361694162,1747696232282,-8230.10116185,0.00011779,2]
[361694164,1747696232293,-1050.0,0.00011779,2]
[361694176,1747696232392,-1578.04109096,0.00011779,2]
[361694182,1747696232434,-1065.01637705,0.00011779,2]
[361694184,1747696232443,-3506.75358048,0.0001178,2]
[361694186,1747696232454,-3410.42205763,0.0001178,2]
[361694188,1747696232464,-300.0,0.0001178,2]
[361694192,1747696232487,-303.35853919,0.0001178,2]
[361694194,1747696232498,-28340.67629403,0.0001178,2]
[361694206,1747696232607,-1058.1571,0.0001178,2]
[361694209,1747696232619,-20803.85362867,0.0001178,2]
[361694211,1747696232628,-150.0,0.00011783,2]
[361694213,1747696232637,-150.0,0.00011783,2]
[361694215,1747696232646,-150.0,0.00011786,2]
[361694217,1747696232655,-150.0,0.00011789,2]
[361694218,1747696232664,-150.0,0.00011793,2]
[361694220,1747696232675,-1800.0,0.000118,4]
[361694222,1747696232685,-2350.15216071,0.000118,2]
[361694224,1747696232694,-167.7387862,0.00011802,2]
[361694226,1747696232704,-150.0,0.00011807,2]
[361694228,1747696232714,-150.0,0.00011808,2]
[361694230,1747696232724,-2350.15216068,0.00011811,2]
[361694232,1747696232734,-308.0979096,0.00011814,2]
[361694234,1747696232743,-150.0,0.0001182,2]
[361694236,1747696232753,-150.0,0.00011821,2]
[361694238,1747696232762,-150.0,0.00011822,2]
[361694240,1747696232771,-2350.15216068,0.00011822,2]
[361694242,1747696232780,-150.0,0.00011823,2]
[361694244,1747696232789,-150.0,0.00011824,2]
[361694246,1747696232799,-150.0,0.0001183,2]
[361694248,1747696232808,-150.0,0.0001183,2]
[361694250,1747696232817,-150.0,0.00011831,2]
[361694252,1747696232826,-2350.15216068,0.00011833,2]
[361694254,1747696232835,-150.0,0.0001184,2]
[361694256,1747696232844,-150.0,0.00011843,2]
[361694258,1747696232853,-2350.15216068,0.00011844,2]
[361694260,1747696232862,-150.0,0.00011845,2]
[361694262,1747696232871,-2350.15216068,0.00011856,2]
[361694264,1747696232880,-150.0,0.00011856,2]
[361694266,1747696232890,-150.0,0.00011856,2]
[361694268,1747696232899,-596.73182098,0.00011859,2]
[361694270,1747696232908,-10942.08601932,0.00011862,2]
[361694272,1747696232918,-150.0,0.00011862,2]
[361694274,1747696232927,-273.52,0.00011865,2]
[361694276,1747696232936,-2350.15216068,0.00011867,2]
[361694278,1747696232945,-249.79601542,0.00011869,2]
[361694280,1747696232955,-240.58177997,0.00011869,2]
[361694282,1747696232964,-187.02358613,0.00011869,2]
[361694284,1747696232974,-150.0,0.00011869,2]
[361694286,1747696232983,-23213.97768184,0.0001187,2]
[361694288,1747696232994,-150.0,0.00011871,2]
[361694290,1747696233003,-619.553045,0.00011873,2]
[361694292,1747696233012,-191.90632029,0.00011873,2]
[361694294,1747696233022,-155.0,0.00011873,2]
[361694296,1747696233034,-1199.20597015,0.00011873,2]
[361694298,1747696233044,-160.87971806,0.00011873,2]
[361694300,1747696233053,-668.65185757,0.00011873,2]
[361694302,1747696233063,-668.65185757,0.00011873,2]
[361694304,1747696233072,-151.0,0.00011873,2]
[361694306,1747696233082,-10942.08601932,0.00011875,2]
[361694308,1747696233091,-150.0,0.00011875,2]
[361694310,1747696233102,-150.0,0.00011877,2]
[361694312,1747696233112,-2350.15216068,0.00011878,2]
[361694314,1747696233122,-150.0,0.00011881,2]
[361694316,1747696233132,-150.0,0.00011882,2]
[361694318,1747696233141,-10942.08601932,0.00011887,2]
[361694320,1747696233150,-2350.15216068,0.00011889,2]
[361694322,1747696233160,-150.0,0.00011889,2]
[361694324,1747696233169,-273.52,0.00011889,2]
[361694326,1747696233179,-150.0,0.0001189,2]
[361694328,1747696233189,-150.0,0.00011892,2]
[361694330,1747696233198,-150.0,0.00011895,2]
[361694332,1747696233207,-150.0,0.00011896,2]
[361694334,1747696233216,-263.45296608,0.00011899,2]
[361694336,1747696233226,-585.55226982,0.00011899,2]
[361694366,1747696233510,-5000.0,0.000119,2]
[361694370,1747696233543,-1418.7044,0.000119,2]
[361694372,1747696233552,-722.0862,0.000119,2]
[361694374,1747696233562,-827.20824456,0.000119,2]
[361694376,1747696233571,-212.7607156,0.000119,2]
[361694378,1747696233580,-6236.3723118,0.000119,2]
[361694429,1747696234060,-1107.0864,0.000119,2]
[361694755,1747696237440,-273.52,0.0001189,2]
[361694757,1747696237450,-1877.64824316,0.000119,2]
[361694759,1747696237462,-1720.97906436,0.000119,2]
[361694761,1747696237471,-166.55221696,0.000119,2]
[361694763,1747696237481,-300.0,0.000119,4]
[361694766,1747696237492,-11.45628653,0.000119,2]
[361694774,1747696237581,-500.0,0.000119,2]
[361694776,1747696237593,-1838.69587415,0.000119,2]
[361694778,1747696237604,-174.52427578,0.000119,2]
[361694780,1747696237614,-24.06635364,0.000119,2]
[361694783,1747696237625,-157.75211312,0.000119,2]
[361694784,1747696237635,-857.75656904,0.000119,2]
[361694786,1747696237644,-5704.96592044,0.000119,2]
[361694788,1747696237654,-1000.0,0.000119,2]
[361694790,1747696237664,-150.0,0.00011902,2]
[361694792,1747696237673,-200.0,0.00011904,2]
[361694794,1747696237683,-150.0,0.00011908,2]
[361694796,1747696237692,-150.0,0.00011914,2]
[361694798,1747696237702,-150.0,0.00011915,2]
[361694800,1747696237711,-150.0,0.00011919,2]
[361694802,1747696237721,-150.0,0.00011919,2]
[361694804,1747696237729,-150.0,0.00011929,2]
[361694806,1747696237739,-150.0,0.00011929,2]
[361694808,1747696237748,-150.0,0.0001193,2]
[361694810,1747696237758,-150.0,0.00011932,2]
[361694811,1747696237767,-150.0,0.0001194,2]
[361694813,1747696237777,-150.0,0.0001195,2]
[361694815,1747696237787,-150.0,0.00011953,2]
[361694817,1747696237796,-611.0,0.00011957,2]
[361694819,1747696237806,-150.0,0.0001197,2]
[361694821,1747696237816,-150.0,0.00011972,2]
[361694823,1747696237825,-507.0,0.00011973,2]
[361694825,1747696237834,-273.52,0.00011981,2]
[361694827,1747696237843,-273.52,0.00011981,2]
[361694829,1747696237852,-273.52,0.00011981,2]
[361694831,1747696237862,-273.52,0.00011981,2]
[361694833,1747696237871,-273.52,0.00011981,2]
[361694835,1747696237880,-273.52,0.00011981,2]
[361694837,1747696237889,-273.52,0.00011981,2]
[361694839,1747696237900,-1025.84140583,0.0001199,2]
[361694841,1747696237909,-1025.84140583,0.0001199,2]
[361694843,1747696237918,-1025.84140583,0.0001199,2]
[361694845,1747696237928,-4594.7367613,0.00011991,2]
[361694850,1747696237978,-112774.24092345,0.00011991,2]
[361694859,1747696238052,-1808.45890294,0.00011991,2]
[361694861,1747696238063,-14639.34743737,0.00011991,2]
[361694866,1747696238103,-515.55170183,0.00011991,2]
[361695027,1747696239665,-98211.35396831,0.00011991,2]
[361695029,1747696239675,-19930.3660306,0.00011991,2]
[361695031,1747696239684,-14318.130073,0.00011991,2]
[361695033,1747696239693,-7862.5274829,0.00011991,2]
[361695035,1747696239702,-150.052007,0.00011998,2]
[361695037,1747696239711,-150.052007,0.00011998,2]
[361695039,1747696239720,-150.052007,0.00011998,2]
[361695041,1747696239729,-150.052007,0.00011998,2]
[361695043,1747696239739,-150.052007,0.00011998,2]
[361695045,1747696239748,-155.0,0.00011999,2]
[361695047,1747696239757,-501.0,0.00011999,2]
[361695049,1747696239767,-150.0,0.00011999,2]
[361695051,1747696239776,-150.0,0.00011999,2]
[361695052,1747696239787,-150.0,0.00011999,2]
[361695055,1747696239797,-150.0,0.00011999,2]
[361695056,1747696239806,-500.0,0.00011999,2]
[361695058,1747696239815,-150.0,0.00011999,2]
[361695060,1747696239824,-500.0,0.00011999,2]
[361695062,1747696239834,-458.22626773,0.00012,2]
[361695064,1747696239843,-525846.42350908,0.00012,2]
[361695066,1747696239853,-1028751.4186414,0.00012,2]
[361695068,1747696239863,-3513564.82618075,0.00012,2]
[361695071,1747696239874,-3094.37765937,0.00012,2]
[361695077,1747696239929,-1698.0,0.00012,2]
[361695130,1747696240454,-250.31848735,0.00012,2]
[361695132,1747696240466,-1520.9355887,0.00012,2]
[361695134,1747696240477,-2690.89999997,0.00012,2]
[361695136,1747696240488,-1460.72000014,0.00012,2]
[361695306,1747696242706,-1498.87505027,0.00012,2]
[361695307,1747696242819,-1771.5825316,0.00012,2]
[361695309,1747696245487,-4362.29840756,0.00012,2]
[361695310,1747696245771,-7739.991035,0.00012,2]
[361695311,1747696245783,-2679.10578319,0.00012,2]
[361695689,1747696409792,197.38,0.00011076,2]
[361695690,1747696479833,1086.48,9.121e-05,2]
[361695691,1747696508020,1000.0,0.00011026,2]
[361695692,1747696608209,711.36038145,0.00027397,120]
[361695693,1747696630875,157.27,0.00011034,2]
[361695695,1747696666572,600.52,0.00011141,2]
[361695697,1747696700159,2167.3,0.00011211,2]
[361695699,1747696772566,159.51,0.00011026,2]
[361695700,1747696781393,202.0,0.00010385,2]
[361695701,1747696781632,202.0,0.00013486,5]
[361695704,1747696863365,23900.0,0.00011022,2]
[361695707,1747697069384,152.81,0.00010966,2]
[361695708,1747697083448,250.0,0.00010966,2]
[361695709,1747697168993,1609.49,0.00010908,2]
[361695710,1747697289422,439.63,0.00027397,120]
[361695711,1747697344595,163.6,0.00010908,2]
[361695720,1747697431965,-1086.48,0.00011385,2]
[361695721,1747697431975,-250.0,0.00011385,2]
[361695722,1747697431985,-200.0,0.00011385,2]
[361695723,1747697431995,-200.0,0.00011385,2]
[361695724,1747697432005,-250.0,0.00011387,2]
[361695725,1747697432014,-200.0,0.00011392,2]
[361695726,1747697432023,-846.47,0.0001159,2]
[361695727,1747697432033,-546.5621037,0.00011598,2]
[361695728,1747697432044,-527.12435326,0.00011598,2]
[361695729,1747697432055,-126.31354304,0.00011598,2]
[361695731,1747697432065,-300.0,0.00011599,2]
[361695733,1747697432074,-3150.0521037,0.000116,2]
[361695735,1747697432084,-234.19704442,0.000116,2]
[361695737,1747697432093,-846.7453392,0.0001161,2]
[361695739,1747697432103,-1000.0,0.000117,2]
[361695741,1747697432112,-497.54891084,0.000117,2]
[361695744,1747697432136,-272.02976068,0.000117,2]
[361695745,1747697432148,-230.42132848,0.000117,2]
[361695746,1747697432159,-207.4,0.0001173,2]
[361695747,1747697432169,-150.99,0.00011736,2]
[361695748,1747697432180,-708.45,0.00011736,2]
[361695749,1747697432190,-1013.54,0.00011736,2]
[361695750,1747697432200,-150.99,0.00011736,2]
[361695751,1747697432210,-265.96867152,0.00011737,2]
[361695752,1747697432222,-305.32,0.00011737,2]
[361695759,1747697437629,-1451.03997587,0.00011737,2]
[361695760,1747697437767,-345.11964374,0.00011737,2]
[361695761,1747697437778,-1137.57679442,0.00011737,2]
[361695763,1747697437955,-4722.87651445,0.00011737,2]
[361695765,1747697437966,-1000.0,0.00011737,2]
[361695766,1747697437975,-376.0257488,0.0001176,2]
[361695767,1747697437985,-500.0,0.00011773,2]
[361695768,1747697437994,-500.0,0.00011773,2]
[361695769,1747697438003,-501.92231379,0.00011773,2]
[361695770,1747697438012,-500.0,0.00011773,2]
[361695771,1747697438023,-151.0,0.00011793,2]
[361695772,1747697438036,-668.65185757,0.00011793,2]
[361695773,1747697438045,-150.0,0.00011797,2]
[361695774,1747697438054,-500.0,0.00011798,2]
[361695775,1747697438065,-181.83967602,0.00011798,2]
[361695776,1747697438074,-500.0,0.00011798,2]
[361695777,1747697438083,-500.0,0.00011798,2]
[361695778,1747697438093,-500.0,0.00011798,2]
[361695779,1747697438102,-500.0,0.00011798,2]
[361695780,1747697438111,-360.02177666,0.00011798,2]
[361695781,1747697438122,-6593.7335,0.000118,2]
[361695782,1747697438131,-1708.75,0.000118,2]
[361695783,1747697438140,-3995.23149156,0.000118,2]
[361695786,1747697439932,-3937.48850844,0.000118,2]
[361695787,1747697439941,-1781.83,0.000118,2]
[361695788,1747697439950,-6565.2516116,0.00011892,2]
[361695789,1747697439959,-6565.2516116,0.00011893,2]
[361695790,1747697439969,-6565.2516116,0.00011894,2]
[361695791,1747697439979,-6565.2516116,0.00011895,2]
[361695792,1747697439988,-6565.2516116,0.00011896,2]
[361695793,1747697439998,-6565.2516116,0.00011896,2]
[361695794,1747697440008,-6565.2516116,0.00011897,2]
[361695795,1747697440018,-6565.2516116,0.00011898,2]
[361695796,1747697440028,-6565.2516116,0.00011899,2]
[361695797,1747697440037,-607.12619729,0.000119,2]
[361695798,1747697440047,-305.873,0.000119,2]
[361695799,1747697440056,-5902.759,0.000119,2]
[361695800,1747697440065,-709.03563816,0.000119,2]
[361695801,1747697440075,-170.20857248,0.000119,2]
[361695802,1747697440084,-167.7387862,0.000119,2]
[361695803,1747697440093,-5000.0,0.000119,2]
[361695804,1747697440103,-2371.07669391,0.000119,2]
[361695805,1747697440112,-6565.2516116,0.000119,2]
[361695806,1747697440122,-494.79413891,0.000119,2]
[361695807,1747697440131,-1715.51313806,0.000119,2]
[361695808,1747697440140,-168.0,0.00011921,2]
[361695809,1747697440151,-1498.0,0.00011932,2]
[361695810,1747697440160,-500.0,0.00011973,2]
[361695811,1747697440169,-431.35315736,0.00011973,2]
[361695812,1747697440179,-500.0,0.00011973,2]
[361695813,1747697440188,-500.0,0.00011973,2]
[361695814,1747697440198,-500.0,0.00011973,2]
[361695815,1747697440207,-500.0,0.00011973,2]
[361695816,1747697440216,-2953.1134569,0.00011991,2]
[361695817,1747697440226,-38485.6403718,0.00011991,2]
[361695819,1747697440235,-7082.2450046,0.00011991,2]
[361695821,1747697440245,-174.8572108,0.00011991,2]
[361695822,1747697440254,-168.40724598,0.00011991,2]
[361695823,1747697440264,-1778.20548135,0.00011992,2]
[361695825,1747697440497,-83018.11020025,0.00011992,2]
[361695826,1747697440507,-3896.011153,0.00011992,2]
[361695827,1747697440518,-7708.43142783,0.00011992,2]
[361695828,1747697440527,-150.0,0.00011992,2]
[361695829,1747697440536,-150.0,0.00011992,2]
[361695830,1747697440546,-150.0,0.00011992,2]
[361695831,1747697440555,-500.0,0.00011992,2]
[361695832,1747697440565,-150.0,0.00011992,2]
[361695833,1747697440574,-150.0,0.00011992,2]
[361695834,1747697440584,-500.0,0.00011992,2]
[361695835,1747697440594,-150.0,0.00011999,2]
[361695836,1747697440603,-150.0,0.00011999,2]
[361695837,1747697440613,-150.0,0.00011999,2]
[361695838,1747697440622,-150.0,0.00011999,2]
[361695839,1747697440631,-150.0,0.00011999,2]
[361695840,1747697440640,-500.0,0.00011999,2]
[361695841,1747697440651,-899.0,0.00011999,2]
[361695842,1747697440660,-789138.10047998,0.00012,2]
[361695843,1747697440669,-458.22626773,0.00012,2]
[361695844,1747697440679,-947561.81074715,0.00012,2]
[361695845,1747697440689,-151.0,0.00012,2]
[361695846,1747697440698,-151.0,0.00012,2]
[361695847,1747697440708,-154.875216,0.00012,2]
[361695848,1747697440719,-151.0,0.00012,2]
[361695849,1747697440728,-151.0,0.00012,2]
[361695850,1747697440738,-1000.0,0.00012,2]
[361695851,1747697440747,-1000.0,0.00012,2]
[361695852,1747697440756,-1000.0,0.00012,2]
[361695853,1747697440766,-1000.0,0.00012,2]
[361695854,1747697440775,-1000.0,0.00012,2]
[361695855,1747697440784,-1000.0,0.00012,2]
[361695856,1747697440795,-1000.0,0.00012,2]
[361695857,1747697440804,-1000.0,0.00012,2]
[361695858,1747697440813,-1000.0,0.00012,2]
[361695859,1747697440823,-1000.0,0.00012,2]
[361695860,1747697440833,-1000.0,0.00012,2]
[361695861,1747697440842,-1000.0,0.00012,2]
[361695862,1747697440851,-1000.0,0.00012,2]
[361695863,1747697440860,-1000.0,0.00012,2]
[361695864,1747697440869,-1000.0,0.00012,2]
[361695865,1747697440879,-1000.0,0.00012,2]
[361695866,1747697440888,-1000.0,0.00012,2]
[361695867,1747697440898,-1000.0,0.00012,2]
[361695868,1747697440907,-1000.0,0.00012,2]
[361695869,1747697440916,-1000.0,0.00012,2]
[361695870,1747697440926,-1000.0,0.00012,2]
[361695871,1747697440935,-1000.0,0.00012,2]
[361695872,1747697440944,-1000.0,0.00012,2]
[361695873,1747697440954,-1000.0,0.00012,2]
[361695874,1747697440963,-1000.0,0.00012,2]
[361695875,1747697440972,-1000.0,0.00012,2]
[361695876,1747697440981,-1000.0,0.00012,2]
[361695877,1747697440990,-1000.0,0.00012,2]
[361695878,1747697440999,-1000.0,0.00012,2]